bitfinex-derivatives/quotes_SOLF0:USTF0_20240905
["timestamp","ask_amount","ask_price","bid_price","bid_amount"]
[1725574832929,30.7381,128.63,128.57,3.8897]
[1725574833325,0.05122036,128.61,128.55,2.719]
[1725574833625,3.93992036,128.61,128.55,6.6094]
[1725574834033,0.05122036,128.61,128.55,6.6094]
[1725574834540,3.93992036,128.61,128.55,6.5894]
[1725574834832,3.93992036,128.61,128.56,3.8902]
[1725574835627,3.889,128.6,128.56,3.8902]
[1725574835831,0.05122036,128.61,128.56,3.8902]
[1725574836029,3.889,128.6,128.55,6.5893]
[1725574836629,3.889,128.6,128.56,3.8901]
[1725574837129,3.93992036,128.61,128.56,3.8901]
[1725574837333,26.90122036,128.61,128.54,5.2637]
[1725574837633,26.90122036,128.61,128.54,1.3731]
[1725574838023,3.889,128.6,128.55,3.8902]
[1725574838330,26.90122036,128.61,128.54,1.3731]
[1725574838529,0.05378227,128.59,128.54,1.3731]
[1725574838827,0.05378227,128.59,128.56,3.8899]
[1725574839029,0.05378227,128.59,128.55,3.85374231]
[1725574839334,11.66297219,128.72,128.56,26.85]
[1725574839626,26.85,128.65,128.54,28.2231]
[1725574839830,3.9630711,128.64,128.55,1.3891]
[1725574840042,26.85,128.63,128.55,1.3891]
[1725574840537,0.05170825,128.6,128.58,0.05227583]
[1725574841433,26.85,128.65,128.58,0.05227583]
[1725574841639,3.8872,128.66,128.62,3.8881]
[1725574841840,26.85,128.65,128.56,26.85]
[1725574842132,30.7375,128.65,128.61,3.8884]
[1725574842337,26.85,128.65,128.56,26.85]
[1725574842535,0.05072837,128.62,128.59,0.05887043]
[1725574842738,3.8871,128.66,128.62,3.8881]
[1725574842938,0.05179345,128.65,128.63,0.05667123]
[1725574843139,3.93929345,128.65,128.63,0.05667123]
[1725574843341,0.05179345,128.65,128.63,0.05667123]
[1725574843540,26.90179345,128.65,128.63,0.05667123]
[1725574843740,3.8877,128.64,128.63,0.05667123]
[1725574844134,26.90179345,128.65,128.63,0.05667123]
[1725574844836,3.8877,128.64,128.63,0.05667123]
[1725574845643,3.93939345,128.65,128.63,0.05667123]
[1725574846336,0.05179345,128.65,128.63,3.94467123]
[1725574846541,0.05179345,128.65,128.63,0.05667123]
[1725574847838,0.05179345,128.65,128.64,3.8877]
[1725574852339,0.05179345,128.65,128.63,0.05667123]
[1725574853340,0.05179345,128.65,128.64,3.8877]
[1725574854849,0.05179345,128.65,128.63,0.05667123]
[1725574857249,0.05179345,128.65,128.64,3.8877]
[1725574861452,251.24,128.77,128.63,26.85]
[1725574861653,26.85,128.75,128.65,26.85]
[1725574861946,26.85,128.71,128.62,3.89938791]
[1725574862147,4.1033,128.76,128.61,1.3248]
[1725574862148,26.85,128.69,128.61,1.3248]
[1725574862347,3.8876,128.65,128.61,1.3248]
[1725574862552,0.05166805,128.66,128.64,0.05768296]
[1725574863649,0.05166805,128.66,128.65,3.8874]
[1725574864558,26.84166805,128.71,128.68,3.8864]
[1725574864759,3.8855,128.72,128.68,3.8864]
[1725574864952,26.85,128.72,128.64,3.88538931]
[1725574865143,26.85,128.72,128.61,28.1748]
[1725574865144,26.85,128.72,128.69,3.8861]
[1725574865656,26.90953972,128.72,128.69,3.9386451]
[1725574866646,30.79483972,128.72,128.69,3.9386451]
[1725574867452,30.79483972,128.72,128.69,0.0525451]
[1725574868851,0.05953972,128.72,128.69,0.0525451]
[1725574869759,0.05953972,128.72,128.71,3.8856]
[1725574873653,7.9705,128.78,128.75,3.8843]
[1725574873858,3.8836,128.78,128.75,3.8843]
[1725574874252,30.7332,128.79,128.76,3.8841]
[1725574874562,26.85,128.79,128.76,3.8841]
[1725574874755,26.90336657,128.79,128.76,0.04983669]
[1725574874952,3.8836,128.78,128.76,0.04983669]
[1725574875251,26.90336657,128.79,128.76,0.04983669]
[1725574875556,0.05336657,128.79,128.76,0.04983669]
[1725574876056,3.8838,128.77,128.76,0.04983669]
[1725574876256,26.90336657,128.79,128.76,0.04983669]
[1725574876560,0.05336657,128.79,128.77,3.8838]
[1725574876752,0.05336657,128.79,128.76,0.04983669]
[1725574877063,0.05336657,128.79,128.76,3.93373669]
[1725574877856,0.05336657,128.79,128.77,3.8836]
[1725574878057,0.05336657,128.79,128.76,0.04983669]
[1725574878857,0.05336657,128.79,128.77,3.8836]
[1725574879660,30.70616657,128.81,128.76,0.04983669]
[1725574880064,30.70616657,128.81,128.77,3.8837]
[1725574880267,29.5987,128.83,128.77,3.8837]
[1725574880560,0.05674877,128.81,128.79,0.05341961]
[1725574880761,0.053181,128.81,128.79,0.04981377]
[1725574881256,3.935981,128.81,128.79,0.04981377]
[1725574881458,26.85,128.8,128.71,3.9128491]
[1725574881663,26.85,128.78,128.71,3.9128491]
[1725574881961,3.884,128.77,128.7,2.8188]
[1725574882157,26.85,128.78,128.7,2.8188]
[1725574882661,0.05607566,128.75,128.73,0.05030528]
[1725574883161,0.05607566,128.75,128.74,3.8847]
[1725574885558,0.05607566,128.75,128.73,0.05030528]
[1725574886363,3.94067566,128.75,128.73,0.05030528]
[1725574887463,3.94067566,128.75,128.73,3.93530528]
[1725574887464,0.05607566,128.75,128.73,3.93530528]
[1725574888858,3.94057566,128.75,128.73,0.05030528]
[1725574889253,0.05607566,128.75,128.73,0.05030528]
[1725574890361,0.05607566,128.75,128.73,3.93520528]
[1725574890761,0.05607566,128.75,128.73,0.05030528]
[1725574891159,3.8847,128.74,128.73,0.05030528]
[1725574893762,26.85,128.74,128.68,3.8864]
[1725574894063,26.85,128.72,128.62,26.85]
[1725574894261,3.8868,128.68,128.62,3.86695084]
[1725574894461,5.22362439,128.71,128.64,3.8076]
[1725574894462,1.3489,128.71,128.64,3.8076]
[1725574894769,3.8868,128.67,128.66,0.0509389]
[1725574894967,30.6936302,128.68,128.61,3.8884]
[1725574895166,1.3453,128.67,128.61,3.8884]
[1725574895766,26.85,128.65,128.55,74.18053166]
[1725574895962,0.05396399,128.61,128.59,0.05780288]
[1725574896569,3.94276399,128.61,128.59,0.05780288]
[1725574897170,3.8889,128.6,128.59,0.05780288]
[1725574897872,3.8896,128.58,128.52,3.96580077]
[1725574898078,3.8896,128.58,128.54,3.8906]
[1725574898267,3.97668942,128.61,128.5,35.0196]
[1725574898666,0.04919326,128.57,128.54,0.05596932]
[1725574900067,0.04919326,128.57,128.54,3.94666932]
[1725574900976,0.04919326,128.57,128.54,0.05596932]
[1725574901375,3.8905,128.55,128.54,0.05596932]
[1725574905483,1.4114,128.56,128.5,3.8918]
[1725574905980,3.8911,128.53,128.5,3.8918]
[1725574906582,3.94436323,128.53,128.5,3.9500693]
[1725574907873,3.94436323,128.53,128.5,0.0582693]
[1725574909385,3.94436323,128.53,128.5,0.0382693]
[1725574910179,3.94436323,128.53,128.5,3.9301693]
[1725574910880,0.05326323,128.53,128.39,69.89072576]
[1725574911081,3.94475766,128.52,128.43,1.3028]
[1725574911280,35.048,128.55,128.43,1.3028]
[1725574911479,5.4128435,128.55,128.48,3.8926]
[1725574912077,0.05641398,128.53,128.44,33.62]
[1725574912279,0.0565453,128.5,128.46,3.893]
[1725574912486,0.0565453,128.5,128.44,33.62]
[1725574913387,0.0565453,128.5,128.47,3.8927]
[1725574914784,3.9485453,128.5,128.47,3.8927]
[1725574915191,0.0565453,128.5,128.47,3.8927]
[1725574916093,3.9485453,128.5,128.47,3.8927]
[1725574917786,0.0565453,128.5,128.43,1.3028]
[1725574917990,0.0565453,128.5,128.41,26.93]
[1725574918184,0.05161544,128.47,128.41,28.3141]
[1725574918581,0.05161544,128.47,128.43,26.93]
[1725574918991,0.05161544,128.47,128.46,3.8932]
[1725574919180,0.05161544,128.47,128.46,5.23]
[1725574921585,0.05161544,128.47,128.46,1.3368]
[1725574922384,0.05161544,128.47,128.46,5.23]
[1725574923589,26.93,128.54,128.46,5.15655204]
[1725574923794,3.8913,128.53,128.46,5.15655204]
[1725574923991,26.93,128.54,128.46,6.49985204]
[1725574924191,26.93,128.54,128.48,3.8923]
[1725574924391,26.93,128.54,128.46,6.49985204]
[1725574924695,0.0515593,128.51,128.49,0.01201485]
[1725574924890,3.9433593,128.51,128.49,0.01201485]
[1725574925093,0.0515593,128.51,128.49,0.01201485]
[1725574925488,0.0515593,128.51,128.49,3.90421485]
[1725574927391,0.0515593,128.51,128.49,0.01201485]
[1725574927789,0.0515593,128.51,128.49,3.90411485]
[1725574930197,0.0515593,128.51,128.49,0.01201485]
[1725574930798,3.9433593,128.51,128.49,0.01201485]
[1725574931393,3.892,128.5,128.49,0.01201485]
[1725574931595,0.0515593,128.51,128.49,0.01201485]
[1725574931899,3.9434593,128.51,128.49,0.01201485]
[1725574933399,3.892,128.5,128.49,0.01201485]
[1725574933598,26.9815593,128.51,128.44,2.7684]
[1725574933599,26.93,128.51,128.44,2.7684]
[1725574934000,3.8928,128.48,128.44,1.337]
[1725574934498,26.93,128.47,128.41,1.442]
[1725574934804,26.93,128.45,128.4,1.387]
[1725574934999,3.94503888,128.44,128.39,69.89072576]
[1725574935303,0.05103888,128.44,128.39,96.82072576]
[1725574935502,1.3954,128.51,128.39,96.82072576]
[1725574935503,3.8922,128.5,128.41,26.93]
[1725574935698,28.3254,128.51,128.44,3.8935]
[1725574935903,26.93,128.49,128.42,1.387]
[1725574936398,26.93,128.49,128.43,3.894]
[1725574936600,0.04979813,128.47,128.45,0.05103888]
[1725574936797,3.94269813,128.47,128.45,0.05103888]
[1725574937000,0.04979813,128.47,128.45,0.05103888]
[1725574939603,26.97979813,128.47,128.45,0.05103888]
[1725574939806,26.95979813,128.47,128.45,0.01103888]
[1725574940002,0.02979813,128.47,128.45,0.01103888]
[1725574940402,3.8932,128.46,128.45,0.01103888]
[1725574941709,0.02979813,128.47,128.45,0.01103888]
[1725574943201,3.8932,128.46,128.45,0.01103888]
[1725574944204,3.92279813,128.47,128.45,0.01103888]
[1725574944399,0.02979813,128.47,128.45,0.01103888]
[1725574950011,0.02979813,128.47,128.45,3.90453888]
[1725574950225,1.3389,128.54,128.45,0.01103888]
[1725574950513,26.93,128.53,128.42,26.93]
[1725574950719,3.8921,128.5,128.42,26.93]
[1725574951217,0.05095599,128.47,128.46,3.893]
[1725574953415,28.2689,128.54,128.48,3.8926]
[1725574953619,3.8915,128.52,128.48,3.8926]
[1725574954014,14.6615,128.52,128.48,3.8926]
[1725574954213,10.77,128.52,128.49,3.8921]
[1725574954409,10.82922347,128.52,128.49,0.05835461]
[1725574954613,10.68922347,128.52,128.49,0.05835461]
[1725574954812,0.05922347,128.52,128.49,0.05835461]
[1725574955010,0.05922347,128.52,128.5,10.77]
[1725574955515,14.6599,128.57,128.5,12.0794]
[1725574955719,14.6599,128.57,128.5,13.4844]
[1725574955919,3.8899,128.57,128.53,3.891]
[1725574956518,3.94684856,128.56,128.54,0.05108611]
[1725574957921,30.7905,128.55,128.54,0.05108611]
[1725574958126,26.9,128.53,128.46,1.3226]
[1725574958322,3.8919,128.51,128.47,3.8928]
[1725574958518,26.9,128.5,128.44,1.3797]
[1725574959122,30.7921,128.5,128.46,3.893]
[1725574959325,0.05621262,128.49,128.47,0.05215608]
[1725574960617,0.05621262,128.49,128.47,3.94495608]
[1725574960823,0.05621262,128.49,128.47,0.05215608]
[1725574962235,0.05621262,128.49,128.48,3.8926]
[1725574964930,0.05621262,128.49,128.47,0.05215608]
[1725574965331,0.05621262,128.49,128.47,3.94485608]
[1725574965839,0.05621262,128.49,128.48,3.8926]
[1725574966635,0.05621262,128.49,128.47,0.05215608]
[1725574970037,3.94851262,128.49,128.47,0.05215608]
[1725574971644,0.05621262,128.49,128.47,0.05215608]
[1725574972245,0.05621262,128.49,128.48,3.8926]
[1725574976849,26.9,128.58,128.48,26.9]
[1725574977349,3.8906,128.55,128.48,26.9]
[1725574977547,3.8906,128.55,128.51,3.8915]
[1725574977744,0.05287786,128.54,128.52,0.05739795]
[1725574979051,0.05287786,128.54,128.52,3.94869795]
[1725574981055,0.05287786,128.54,128.53,3.8911]
[1725574983957,3.8911,128.53,128.52,0.05739795]
[1725574984659,26.95287786,128.54,128.49,3.8921]
[1725574984855,1.3505,128.53,128.49,3.8921]
[1725574985261,3.8918,128.51,128.46,1.3934]
[1725574985662,3.94896655,128.5,128.47,3.95106815]
[1725574985859,0.05696655,128.5,128.47,3.95106815]
[1725574986454,0.05696655,128.5,128.47,0.05826815]
[1725574987152,0.05696655,128.5,128.48,3.8925]
[1725574990164,0.05696655,128.5,128.49,3.8923]
[1725574990366,0.05696655,128.5,128.47,0.05826815]
[1725574990766,0.05696655,128.5,128.48,3.8926]
[1725574992562,0.05696655,128.5,128.45,1.3971]
[1725574992767,26.95696655,128.5,128.45,1.3971]
[1725574993168,3.8925,128.49,128.45,5.2904]
[1725574993763,3.8926,128.48,128.46,0.05572206]
[1725574996378,0.05696655,128.5,128.46,0.05572206]
[1725574997275,3.94896655,128.5,128.46,0.05572206]
[1725574997677,0.05696655,128.5,128.46,0.05572206]
[1725574997873,3.8925,128.49,128.46,0.05572206]
[1725574998874,3.8925,128.49,128.46,3.94892206]
[1725574999581,3.8925,128.49,128.46,3.90892206]
[1725575001370,3.8925,128.49,128.46,0.01572206]
[1725575001573,0.05696655,128.5,128.46,0.01572206]
[1725575002181,3.8926,128.49,128.46,0.01572206]
[1725575002384,0.05696655,128.5,128.46,0.01572206]
[1725575003782,3.8926,128.49,128.46,0.01572206]
[1725575004774,0.05696655,128.5,128.46,0.01572206]
[1725575004775,3.8926,128.48,128.46,0.01572206]
[1725575006581,3.8924,128.49,128.46,3.90882206]
[1725575006874,0.05696655,128.5,128.46,0.01572206]
[1725575007472,26.95696655,128.5,128.46,0.01572206]
[1725575008582,3.8928,128.48,128.46,0.01572206]
[1725575008971,26.95696655,128.5,128.46,0.01572206]
[1725575009188,3.8929,128.47,128.46,0.01572206]
[1725575009885,3.8927,128.48,128.46,0.01572206]
[1725575012080,3.8929,128.47,128.46,0.01572206]
[1725575012282,26.95696655,128.5,128.46,0.01572206]
[1725575012582,3.8928,128.48,128.46,0.01572206]
[1725575013685,3.8929,128.47,128.46,0.01572206]
[1725575015490,3.8927,128.48,128.46,0.01572206]
[1725575016083,0.05696655,128.5,128.46,0.01572206]
[1725575017090,3.8925,128.49,128.46,0.01572206]
[1725575019590,14.71906655,128.5,128.47,3.8929]
[1725575019985,14.71906655,128.5,128.46,0.01572206]
[1725575020490,3.8923,128.49,128.46,3.90872206]
[1725575021288,14.71906655,128.5,128.46,0.01572206]
[1725575021495,10.82696655,128.5,128.46,0.01572206]
[1725575022397,3.8923,128.49,128.46,3.90872206]
[1725575024895,14.71896655,128.5,128.47,3.8928]
[1725575025098,3.94896655,128.5,128.47,3.8928]
[1725575025994,3.8924,128.49,128.46,3.90882206]
[1725575026199,0.05696655,128.5,128.46,3.90882206]
[1725575026398,3.94916655,128.5,128.46,3.90882206]
[1725575027205,3.94916655,128.5,128.47,3.8929]
[1725575027499,0.05696655,128.5,128.47,14.6629]
[1725575027698,0.05696655,128.5,128.47,3.8929]
[1725575027899,0.05696655,128.5,128.48,3.8924]
[1725575028095,0.05696655,128.5,128.46,10.78572206]
[1725575028296,0.05696655,128.5,128.47,13.64049395]
[1725575028494,0.05696655,128.5,128.49,3.8923]
[1725575030002,0.05696655,128.5,128.49,5.44945877]
[1725575031291,0.05696655,128.5,128.49,1.55715877]
[1725575031497,0.05696655,128.5,128.48,3.8924]
[1725575031798,0.05696655,128.5,128.47,6.6136]
[1725575032003,0.05696655,128.5,128.47,2.7209]
[1725575032905,0.05696655,128.5,128.48,3.8924]
[1725575033403,0.05696655,128.5,128.47,2.7209]
[1725575033703,0.05696655,128.5,128.48,3.8926]
[1725575037310,3.94906655,128.5,128.47,5.2058]
[1725575037711,0.05696655,128.5,128.47,5.2058]
[1725575040409,0.05696655,128.5,128.47,12.0831]
[1725575040707,0.05696655,128.5,128.47,1.3131]
[1725575041012,0.05696655,128.5,128.48,3.8924]
[1725575041206,0.05696655,128.5,128.48,5.44971863]
[1725575041513,3.94906655,128.5,128.47,1.3131]
[1725575042411,3.94906655,128.5,128.47,5.206]
[1725575043003,3.94906655,128.5,128.46,3.90872206]
[1725575043204,3.94906655,128.5,128.47,1.55740353]
[1725575043408,3.94906655,128.5,128.46,3.90872206]
[1725575043811,3.94906655,128.5,128.47,1.55741105]
[1725575044012,3.94906655,128.5,128.46,3.90872206]
[1725575045211,3.94906655,128.5,128.46,0.01572206]
[1725575045212,3.8923,128.49,128.46,0.01572206]
[1725575045417,10.77,128.49,128.46,0.01572206]
[1725575045616,3.94801447,128.48,128.46,0.01572206]
[1725575045818,3.8929,128.47,128.46,0.01572206]
[1725575046409,3.8927,128.48,128.46,0.01572206]
[1725575047116,3.8929,128.47,128.46,0.01572206]
[1725575050118,3.94926655,128.5,128.46,3.90872206]
[1725575051923,0.05696655,128.5,128.47,3.8927]
[1725575055926,0.05696655,128.5,128.48,3.8924]
[1725575056224,0.05696655,128.5,128.47,10.77]
[1725575056530,228.0,128.59,128.49,10.77]
[1725575056722,10.77,128.59,128.52,10.77]
[1725575057224,3.8898,128.58,128.54,3.8906]
[1725575057438,10.77,128.59,128.51,10.77]
[1725575057731,3.8902,128.56,128.55,0.04909112]
[1725575058625,0.05167354,128.57,128.55,0.04909112]
[1725575058825,10.77,128.56,128.55,0.04909112]
[1725575059135,3.8916,128.52,128.46,10.77]
[1725575059326,3.8916,128.52,128.47,1.55724357]
[1725575059627,3.8918,128.51,128.48,1.55724357]
[1725575059832,3.8918,128.51,128.46,10.77]
[1725575060028,0.05181173,128.51,128.48,0.02835231]
[1725575060224,0.05181173,128.51,128.5,10.77]
[1725575060526,0.05181173,128.51,128.49,1.3279]
[1725575062127,0.05181173,128.51,128.49,5.2199]
[1725575063833,0.05181173,128.51,128.5,3.892]
[1725575068037,0.05181173,128.51,128.48,0.02835231]
[1725575068636,3.8922,128.5,128.48,0.02835231]
[1725575071441,3.94361173,128.51,128.48,0.02835231]
[1725575073045,3.94361173,128.51,128.48,3.92075231]
[1725575073046,0.05181173,128.51,128.48,3.92075231]
[1725575073245,0.05181173,128.51,128.49,10.77]
[1725575074042,0.05181173,128.51,128.49,14.6622]
[1725575074345,0.05181173,128.51,128.49,10.77]
[1725575076538,3.94361173,128.51,128.48,0.02835231]
[1725575077146,3.892,128.5,128.48,0.02835231]
[1725575078544,3.94361173,128.51,128.48,0.02835231]
[1725575078846,0.05181173,128.51,128.48,0.02835231]
[1725575079150,0.05181173,128.51,128.48,10.79835231]
[1725575079450,0.05181173,128.51,128.49,3.8921]
[1725575080446,0.05181173,128.51,128.49,5.4492388]
[1725575080647,0.05181173,128.51,128.49,3.8921]
[1725575080848,0.05181173,128.51,128.5,3.892]
[1725575083852,3.8906,128.55,128.52,3.8913]
[1725575084056,16.07399247,128.58,128.52,3.8913]
[1725575084949,3.94071327,128.56,128.54,0.04929286]
[1725575085155,0.05041327,128.56,128.54,0.04929286]
[1725575085954,0.05041327,128.56,128.54,3.93999286]
[1725575088252,0.05041327,128.56,128.55,3.8905]
[1725575088658,0.05041327,128.56,128.55,16.0258]
[1725575089860,3.8888,128.61,128.57,3.8897]
[1725575090751,2.6603,128.64,128.58,3.8895]
[1725575090752,3.8885,128.62,128.58,3.8895]
[1725575090955,0.05064437,128.59,128.58,3.8895]
[1725575091156,0.05064437,128.59,128.57,0.05619344]
[1725575092055,0.05064437,128.59,128.58,3.8896]
[1725575092465,0.05064437,128.59,128.58,14.6596]
[1725575094158,3.89390245,128.66,128.58,10.77]
[1725575094359,10.77,128.68,128.61,10.77]
[1725575094566,14.71525062,128.68,128.61,10.77]
[1725575094763,3.8873,128.66,128.62,3.8882]
[1725575095161,0.05262393,128.65,128.63,0.05508654]
[1725575095757,0.05262393,128.65,128.63,1.49978654]
[1725575095968,0.05262393,128.65,128.63,29.73888654]
[1725575096559,0.05262393,128.65,128.63,33.71441787]
[1725575096963,3.886,128.7,128.63,33.65933133]
[1725575097366,114.95871679,128.72,128.63,33.65933133]
[1725575097568,3.8858,128.71,128.66,3.887]
[1725575097868,28.3338,128.73,128.66,3.887]
[1725575098169,3.93577981,128.7,128.67,0.05057046]
[1725575099059,0.04977981,128.7,128.67,0.05057046]
[1725575099255,0.04977981,128.7,128.68,3.8865]
[1725575099459,0.04977981,128.7,128.67,0.05057046]
[1725575100067,0.04977981,128.7,128.69,3.8862]
[1725575100667,1.3779,128.77,128.7,3.8859]
[1725575100866,3.92424455,128.79,128.71,26.89]
[1725575101081,3.92424455,128.79,128.72,3.8852]
[1725575101264,3.8846,128.75,128.69,26.89]
[1725575101569,0.05189584,128.73,128.71,0.05610712]
[1725575101773,0.05690292,128.73,128.71,0.05911309]
[1725575103267,0.05690292,128.73,128.71,3.84900929]
[1725575103659,0.05690292,128.73,128.71,0.05911309]
[1725575105767,0.05690292,128.73,128.71,3.94471309]
[1725575107771,3.8842,128.76,128.72,3.8853]
[1725575107976,28.2874,128.8,128.72,1.4245]
[1725575107977,3.82524792,128.79,128.72,1.4245]
[1725575108195,3.8836,128.78,128.72,1.4245]
[1725575108376,7.7631,128.85,128.73,26.89]
[1725575108377,28.2185,128.84,128.73,26.89]
[1725575108674,3.8832,128.8,128.75,3.8842]
[1725575108874,0.05047262,128.79,128.76,0.05230258]
[1725575112374,3.93377262,128.79,128.76,0.05230258]
[1725575112573,0.05047262,128.79,128.76,0.05230258]
[1725575114279,0.05047262,128.79,128.76,3.93620258]
[1725575115575,0.05047262,128.79,128.77,5.32808015]
[1725575115970,0.05047262,128.79,128.77,9.21188015]
[1725575117175,0.05047262,128.79,128.78,3.8835]
[1725575117578,0.05047262,128.79,128.77,1.3801]
[1725575117981,0.05047262,128.79,128.77,5.28668437]
[1725575118378,0.05047262,128.79,128.78,3.8835]
[1725575119278,1.384,128.86,128.8,3.8828]
[1725575120379,0.05907838,128.84,128.82,0.05466742]
[1725575121686,0.05907838,128.84,128.76,26.89]
[1725575121882,28.274,128.86,128.76,26.89]
[1725575122085,3.8828,128.81,128.77,3.8837]
[1725575122484,28.274,128.86,128.76,26.89]
[1725575122789,3.8833,128.79,128.75,6.5925]
[1725575122984,0.05946645,128.78,128.76,0.05152694]
[1725575124986,3.94306645,128.78,128.76,0.05152694]
[1725575125592,3.8838,128.77,128.76,0.05152694]
[1725575126595,3.8838,128.77,128.71,4.0565]
[1725575126596,3.8848,128.74,128.71,1.3584]
[1725575126790,26.94946645,128.78,128.71,1.3584]
[1725575126791,26.89,128.78,128.71,5.14527092]
[1725575126985,26.89,128.78,128.71,1.3584]
[1725575127699,3.8845,128.75,128.73,0.05475901]
[1725575128592,3.8847,128.74,128.73,0.05475901]
[1725575128995,3.8847,128.74,128.65,29.7204]
[1725575128996,3.88975301,128.74,128.65,29.7204]
[1725575129194,26.89,128.74,128.65,29.7204]
[1725575129402,26.89,128.74,128.66,3.887]
[1725575129895,3.93860439,128.71,128.69,0.05130845]
[1725575132806,0.05270439,128.71,128.69,0.05130845]
[1725575136203,0.05270439,128.71,128.7,3.8859]
[1725575136599,0.05270439,128.71,128.7,7.81231459]
[1725575136815,0.05270439,128.71,128.7,9.11611459]
[1725575138208,3.8843,128.76,128.71,3.8854]
[1725575139115,0.05531117,128.75,128.72,0.04984565]
[1725575140709,0.05531117,128.75,128.72,3.93504565]
[1725575144811,0.05531117,128.75,128.72,0.04984565]
[1725575145416,3.93971117,128.75,128.72,3.93504565]
[1725575145921,0.05531117,128.75,128.72,3.93504565]
[1725575146219,0.05531117,128.75,128.72,0.04984565]
[1725575146613,3.8849,128.74,128.72,0.04984565]
[1725575146812,0.05531117,128.75,128.72,0.04984565]
[1725575147411,3.8849,128.74,128.72,0.04984565]
[1725575147614,0.05531117,128.75,128.72,0.04984565]
[1725575147615,30.89102098,128.75,128.72,0.04984565]
[1725575147812,1.3703,128.74,128.72,0.04984565]
[1725575148117,3.885,128.73,128.72,0.04984565]
[1725575149913,26.89,128.73,128.67,3.8868]
[1725575150211,26.89,128.73,128.65,2.7805]
[1725575150212,26.89,128.72,128.65,1.3876]
[1725575150718,3.887,128.67,128.62,26.89]
[1725575151023,0.05762296,128.66,128.63,3.94749095]
[1725575151315,0.05762296,128.66,128.63,0.05969095]
[1725575151712,0.05762296,128.66,128.64,3.8877]
[1725575153714,0.05762296,128.66,128.63,3.94769095]
[1725575158727,0.05762296,128.66,128.64,3.8877]
[1725575158928,0.05762296,128.66,128.63,0.05969095]
[1725575159727,0.05762296,128.66,128.64,3.8876]
[1725575159914,0.05762296,128.66,128.63,0.05969095]
[1725575160117,0.05762296,128.66,128.63,3.94759095]
[1725575161124,0.05762296,128.66,128.64,3.8877]
[1725575162825,0.05762296,128.66,128.65,3.8874]
[1725575163618,32.09992563,128.74,128.66,3.8871]
[1725575164728,32.09992563,128.74,128.62,5.27918471]
[1725575164729,0.05421097,128.71,128.69,0.05742591]
[1725575165226,3.94001097,128.71,128.69,0.05742591]
[1725575166024,3.8859,128.7,128.69,0.05742591]
[1725575166631,3.94001097,128.71,128.69,0.05742591]
[1725575169541,0.05421097,128.71,128.7,3.8859]
[1725575171732,0.05421097,128.71,128.69,3.94352591]
[1725575173134,0.05421097,128.71,128.7,3.8859]
[1725575176143,0.05421097,128.71,128.69,3.94352591]
[1725575176440,0.05421097,128.71,128.69,0.05742591]
[1725575176741,3.8859,128.7,128.69,0.05742591]
[1725575179344,3.8865,128.69,128.65,3.8873]
[1725575180436,0.0547913,128.68,128.66,0.0511592]
[1725575183044,3.9412913,128.68,128.66,0.0511592]
[1725575183246,0.0547913,128.68,128.66,0.0511592]
[1725575183742,0.0547913,128.68,128.66,3.9381592]
[1725575186355,0.0547913,128.68,128.67,3.8868]
[1725575187754,0.0547913,128.68,128.66,5.3137592]
[1725575188142,0.0547913,128.68,128.66,1.4267592]
[1725575189657,0.0547913,128.68,128.66,5.3137592]
[1725575190360,0.0547913,128.68,128.67,3.8868]
[1725575191353,3.8855,128.72,128.66,1.4267592]
[1725575191354,3.8855,128.72,128.68,3.8863]
[1725575191657,3.8861,128.7,128.66,1.3756]
[1725575192054,3.8861,128.7,128.66,5.2627]
[1725575192557,0.05583566,128.69,128.67,0.05555756]
[1725575192954,0.05583566,128.69,128.67,3.94235756]
[1725575193653,0.05583566,128.69,128.68,3.8865]
[1725575195251,0.05583566,128.69,128.67,3.94225756]
[1725575196150,0.05583566,128.69,128.68,3.8865]
[1725575198660,7.78418536,128.75,128.71,3.8856]
[1725575198868,12.0858,128.76,128.68,12.0802]
[1725575199061,12.0858,128.76,128.69,3.97328011]
[1725575199062,3.91575268,128.75,128.69,3.97328011]
[1725575199658,0.04929139,128.73,128.71,0.0578857]
[1725575203863,0.04929139,128.73,128.72,3.8853]
[1725575212680,10.75,128.79,128.72,10.75]
[1725575213075,14.6333,128.79,128.72,10.75]
[1725575213277,14.6333,128.79,128.75,3.8842]